Cogmind - Beta 13 @@@ ROGUE MODE // 2024.04.14 @ 00:35:00 Player: thrax Result: Destroyed by Y-45 Defender with Heavy Assault Rifle Performance ------------- Evolutions (1) 500 Regions Visited (2) 400 Robots Destroyed (48) 240 Value Destroyed (1274) 1274 Prototype IDs (2) 40 Alien Tech Used (0) 0 Bonus (0) 0 TOTAL SCORE: 2454 Bonus ------- None Cogmind --------- Core Integrity 0/400 Matter 290/300 Energy 55/100 System Corruption 4% Temperature Cool (0) Movement Walking (190) Ox1 Location -9/Materials Parts ------- > --- POWER (1) -------- (None) > --- PROPULSION (2) --- Aluminum Leg > --- UTILITY (4) ------ Medium Storage Unit Visual Processing Unit Signal Interpreter Hacking Suite > --- WEAPON (2) ------- Small Laser > --- INVENTORY (10) --- Flight Unit Flight Unit Flight Unit VTOL Module Terrain Scanner Targeting Computer Targeting Computer Utility Shielding Peak State ------------ > --- POWER ------------ Light Nuclear Core > --- PROPULSION ------- Aluminum Leg Aluminum Leg > --- UTILITY ---------- Small Storage Unit Visual Processing Unit Terrain Scanner Hacking Suite > --- WEAPON ----------- Small Laser Small Laser > --- INVENTORY -------- Flight Unit Flight Unit Flight Unit VTOL Module Targeting Computer Targeting Computer Utility Shielding [Rating: 14] Favorites ----------- Power Ion Engine Engine Ion Engine Power Core Light Nuclear Core Propulsion Aluminum Leg Leg Aluminum Leg Utility Small Storage Unit Device Structural Scanner Storage Small Storage Unit Processor Visual Processing Unit Hackware Hacking Suite Protection Utility Shielding Weapon Small Laser Energy Gun Small Laser Energy Cannon Light EM Pulse Cannon Ballistic Gun Assault Rifle Launcher Grenade Launcher Impact Weapon Hammer Special Melee Weapon Datajack Build | -11 -10 -9 ------- Run | Yrd Mat Mat Slots Evolved 2 | . . 2 Power . | . . . Propulsion . | . . . Utility 2 | . . 2 Weapon . | . . . Parts Attached 54 | 6 22 26 Power 7 | 1 4 2 Engine 6 | 1 4 1 Core 1 | . . 1 Reactor . | . . . Propulsion 17 | 2 8 7 Treads . | . . . Leg 17 | 2 8 7 Wheel . | . . . Hover . | . . . Flight . | . . . Utility 13 | 1 4 8 Device 7 | . 4 3 Storage 2 | 1 . 1 Processor 2 | . . 2 Hackware 1 | . . 1 Protection 1 | . . 1 Artifact . | . . . Weapon 17 | 2 6 9 Energy Gun 11 | 1 2 8 Energy Cannon 1 | . . 1 Ballistic Gun 2 | 1 1 . Ballistic Cannon . | . . . Launcher 1 | . 1 . Special Weapon . | . . . Impact Weapon 1 | . 1 . Slashing Weapon . | . . . Piercing Weapon . | . . . Special Melee Weapon 1 | . 1 . Unidentified Prototypes . | . . . Corrupted Parts 3 | . 3 . System Corruption 6 | . 6 . Parts Lost 16 | . 4 12 Power 3 | . 1 2 Propulsion 3 | . . 3 Utility 2 | . 1 1 Weapon 8 | . 2 6 Highest Loss Streak 5 | . 1 5 To Critical Strikes . | . . . Average Slot Usage (%) 93 | . 93 91 Engine 10 | . 13 5 Core 1 | . . 2 Leg 25 | . 27 20 Device 10 | . 13 6 Storage 12 | . 14 11 Processor 5 | . . 13 Hackware 4 | . . 11 Energy Gun 8 | . 5 13 Ballistic Gun 5 | . 5 3 Launcher 4 | . 8 . Impact Weapon 1 | . 3 . Special Melee Weapon 1 | . . 2 Naked Turns . | . . . Heaviest Build 17 | 13 16 17 Greatest Support 20 | 20 20 20 Greatest Overweight (x) 4 | . . 4 Average Overweight (x) . | . . . Largest Inventory Capacity 10 | 8 8 10 Average Capacity 8 | 7 8 8 Most Carried 10 | 4 8 10 Average Carried 7 | 2 7 7 Final Capacity 10 | 8 8 10 Final Carried 8 | 4 8 8 Class Distribution -------------------- 73% | Mutant 26% | Scavenger-Mutant Dominant Class ---------------- Mutant | -10/Materials Scavenger-Mutant | -9/Materials Resources | -11 -10 -9 ----------- Run | Yrd Mat Mat Matter Collected 1070 | 164 425 481 Remotely . | . . . Salvage Created 1572 | . 762 810 Parts 105 | . 61 44 Haulers Intercepted . | . . . Recyclers Shooed 2 | . 2 . Parts Field Recycled . | . . . Retrieved Matter . | . . . Parts Self-Destructed . | . . . Prevented . | . . . Kills | -11 -10 -9 ------- Run | Yrd Mat Mat Combat Hostiles Destroyed 36 | . 18 18 Guns 27 | . 9 18 AOE 9 | . 9 . Classes Destroyed 8 | . 6 2 Worker 1 | . . 1 Builder 4 | . 4 . Recycler 2 | . 1 1 Operator 1 | . 1 . Watcher 4 | . 3 1 Swarmer 6 | . 3 3 Grunt 28 | . 15 13 Sentry 2 | . . 2 Best Kill Streak 5 | . 5 3 Combat Bots Only 3 | . 3 3 Max Kills in Single Turn 2 | . 2 2 Gunslinging . | . . . Exploded 2 | . 2 . Melee . | . . . Uniques/NPCs Destroyed . | . . . Combat | -11 -10 -9 -------- Run | Yrd Mat Mat Hostile Shots Fired 270 | . 86 184 Missed 83 | . 24 59 Damage Taken 2358 | . 797 1561 Core 575 | . 174 401 Absorbed by Shields . | . . . Regen/Repaired (Parts) 7 | . 7 . Core Remaining (%) 65 | 100 30 . Volleys Fired 189 | . 74 115 Largest 2 | . 2 2 Hottest 80 | . 80 80 Shots Fired 276 | . 97 179 Gun 256 | . 80 176 Cannon 3 | . . 3 Launcher 17 | . 17 . Special . | . . . Kinetic 87 | . 34 53 Thermal 113 | . . 113 Explosive 17 | . 17 . Electromagnetic 59 | . 46 13 Robot Hit Streak 11 | . 10 11 Robot Miss Streak 6 | . 6 4 Penetration Max . | . . . Secondary Targets 3 | . . 3 Max Gunslinging Chain 1 | . . 1 Shots Hit Robots 180 | . 58 122 Core Hits 85 | . 45 40 Critical Kills . | . . . Critical Parts Destroyed 2 | . . 2 Critical Strikes 2 | . . 2 Destroy 2 | . . 2 Melee Attacks 4 | . . 4 Impact . | . . . Slashing . | . . . Piercing . | . . . Sneak Attacks 3 | . . 3 Combat Hostiles . | . . . Follow-up Attacks . | . . . Damage Inflicted 3072 | . 1645 1427 Guns 1997 | . 620 1377 Cannons 38 | . . 38 Explosions 1023 | . 1023 . Melee . | . . . Ramming 14 | . 2 12 Kinetic 650 | . 213 437 Thermal 950 | . 105 845 Explosive 918 | . 918 . Electromagnetic 540 | . 407 133 Impact . | . . . Slashing . | . . . Piercing . | . . . Highest Corruption 8 | . 8 4 Average Corruption 4 | . 5 3 Corruption Purged . | . . . Corruption Blocked . | . . . Effects 34 | . 25 9 Message Errors 5 | . 3 2 Matter Fused 8 | . 5 3 Heat Flow Errors 5 | . 4 1 Energy Discharges 3 | . 2 1 Data Loss (minor) 3 | . 3 . Data Loss (major) 4 | . 4 . Misfires 5 | . 3 2 Alerts 1 | . 1 . Overload Shots . | . . . Overflow Damage 12 | . 12 . Projectiles . | . . . Explosions 12 | . 12 . Melee . | . . . Knockbacks . | . . . Impact . | . . . Kinetic . | . . . Secondary . | . . . Self-Inflicted Damage 149 | . 144 5 Shots 7 | . 7 . Rammed 8 | . . 8 Targets Rammed 9 | . 1 8 Kicked 1 | . 1 . Crushed . | . . . Highest Temperature 354 | . 197 354 Average Temperature 80 | . 42 112 Received Heat Transfer 903 | . 300 603 Effects 5 | . . 5 Energy Bleed 2 | . . 2 Short Circuit 2 | . . 2 Damage (minor) 1 | . . 1 Siege Activations . | . . . Robots Corrupted . | . . . Combat Hostiles . | . . . Parts Fried 1 | . 1 . Impact Corruptions . | . . . Robots Melted . | . . . Combat Hostiles . | . . . Parts Melted 3 | . . 3 Heat Transferred 2000 | . 100 1900 Parts Sabotaged . | . . . Parts Stolen . | . . . Parts Stripped . | . . . Power Chain Reactions 1 | . 1 . Alert | -11 -10 -9 ------- Run | Yrd Mat Mat Peak Influence 366 | . 366 197 Initial 127 | . . 127 Average 152 | . 208 88 Maximum Alert Level 1 | . 1 . Low Security (%) 65 | 100 39 100 Level 1 34 | . 60 . Level 2 . | . . . Level 3 . | . . . Level 4 . | . . . Level 5 . | . . . High Security . | . . . Max Security . | . . . Squads Dispatched 11 | . 6 5 Investigation 7 | . 3 4 Extermination . | . . . Reinforcement 4 | . 3 1 Assault . | . . . Garrison . | . . . Intercept . | . . . Searches Triggered . | . . . Construction Impeded . | . . . Haulers Reinforced . | . . . Active Scanning Responses . | . . . Cargo Convoy Interrupts . | . . . Stealth | -11 -10 -9 --------- Run | Yrd Mat Mat Distress Signals 4 | . 1 3 Communications Jammed . | . . . Distress Signals . | . . . Times Spotted 59 | . 29 30 Peak Tracking Total 4 | . 4 4 Tactical Retreats 3 | . 2 1 Traps | -11 -10 -9 ------- Run | Yrd Mat Mat Traps Triggered 4 | . 1 3 Indirectly . | . . . Trap Hack Attempts . | . . . Triggered . | . . . Disarmed . | . . . Reprogrammed . | . . . Reused . | . . . Traps Extracted . | . . . Installed . | . . . Triggered . | . . . Machines | -11 -10 -9 ---------- Run | Yrd Mat Mat Machines Disabled 3 | . 3 . Max in Single Turn 1 | . 1 . Machines Repaired . | . . . Machines Dismantled . | . . . Machines Sabotaged . | . . . Overloaded Fab Kills . | . . . Hacking | -11 -10 -9 --------- Run | Yrd Mat Mat Machines Accessed 11 | . 6 5 Terminals 7 | . 3 4 Fabricators . | . . . Repair Stations 1 | . 1 . Recycling Units 3 | . 2 1 Scanalyzers . | . . . Garrison Access . | . . . Total Hacks 48 | . 31 17 Successful 29 | . 15 14 Failed 18 | . 15 3 Catastrophic 3 | . 3 . Database Lockouts 1 | . 1 . Manual . | . . . Terminals 36 | . 21 15 Fabricators . | . . . Repair Stations 3 | . 3 . Recycling Units 9 | . 7 2 Scanalyzers . | . . . Garrison Access . | . . . Terminal Hacks 20 | . 8 12 Record 11 | . 8 3 Robot Analysis 1 | . . 1 Prototype ID Bank 1 | . . 1 Alert Level 1 | . . 1 Unreport Threat 2 | . . 2 Dispatch Records 1 | . . 1 Surveillance Status 1 | . . 1 Zone Layout 2 | . . 2 Fabricator Hacks . | . . . Repair Station Hacks 3 | . 3 . Scan Component 2 | . 2 . Repair 1 | . 1 . Recycling Unit Hacks 6 | . 4 2 Report Inventory 3 | . 2 1 Retrieve Matter 1 | . 1 . Retrieve Components 2 | . 1 1 Scanalyzer . | . . . Garrison Access Hacks . | . . . Unauthorized Hacks . | . . . Terminals . | . . . Fabricators . | . . . Repair Stations . | . . . Recycling Units . | . . . Scanalyzers . | . . . Garrison Access . | . . . Data Cores Recovered . | . . . Used . | . . . Hacking Detections 11 | . 6 5 Full Trace Events 9 | . 5 4 Feedback Events . | . . . Feedback Blocked . | . . . Robot Schematics Acquired . | . . . Robots Built . | . . . Authchips . | . . . Time . | . . . Total Robot Build Rating . | . . . Part Schematics Acquired . | . . . Parts Built . | . . . Authchips . | . . . Time . | . . . Total Part Build Rating . | . . . Parts Repaired 1 | . 1 . Time 26 | . 26 . Parts Recycled . | . . . Recycled Matter . | . . . Retrieved Matter 219 | . 219 . Retrieved Components 12 | . 9 3 Parts Scanalyzed . | . . . Part Schematics Acquired . | . . . Parts Damaged . | . . . Bothacking | -11 -10 -9 ------------ Run | Yrd Mat Mat Used RIF Installer . | . . . Robots Hacked 2 | . . 2 Non-combat 1 | . . 1 Combat 1 | . . 1 Robot Hacks Applied 4 | . . 4 parse_system 3 | . . 3 no_distress 1 | . . 1 Relay Couplers Released . | . . . Fabnet Peak Effective % . | . . . Robots Rewired . | . . . Allies Hacked . | . . . Hacks Repelled . | . . . Allies | -11 -10 -9 -------- Run | Yrd Mat Mat Total Allies . | . . . Largest Group . | . . . Highest-Rated Group . | . . . Highest-Rated Ally . | . . . Total Orders . | . . . Ally Attacks . | . . . Total Damage . | . . . Kills . | . . . Allies Corrupted . | . . . Allies Melted . | . . . Intel | -11 -10 -9 ------- Run | Yrd Mat Mat Robot Analysis Total 1 | . . 1 Derelict Logs Recovered . | . . . Drone Launches . | . . . Drone Recoveries . | . . . Exploration | -11 -10 -9 ------------- Run | Yrd Mat Mat Turns Passed 2672 | 115 1524 1033 Spaces Moved 1704 | 91 1071 542 Core 15 | 10 . 5 Treads . | . . . Legs 1689 | 81 1071 537 Wheels . | . . . Hover . | . . . Flight . | . . . Fastest Speed 50 | 50 120 120 Average Speed 120 | 112 120 121 Slowest Speed 250 | 120 120 250 Overloaded Moves . | . . . Propulsion Burnouts . | . . . Robots Hopped . | . . . Cave-ins Triggered . | . . . Exploration Rate (%) 46 | 5 99 34 Regions Visited 2 Branch Regions . Pre-discovered Areas . | . . . Known Exits Taken . | . . . Unknown Exits Taken 2 | 1 1 . Scrap Searched . | . . . Spaces Dug . | . . . Terrain Destroyed 84 | . 84 . Melee . | . . . Projectile . | . . . AOE 84 | . 84 . Terrain Rammed . | . . . Walls Destroyed . | . . . Machines Disabled . | . . . Actions | -11 -10 -9 --------- Run | Yrd Mat Mat Total 2050 | 101 1223 726 Wait 41 | . 26 15 Move 1702 | 90 1070 542 Hop . | . . . Pick Up 22 | 5 12 5 Fast Attach 20 | 5 7 8 Attach 9 | 1 3 5 Detach 1 | . . 1 Swap 25 | . 12 13 Drop 28 | . 18 10 Fire 189 | . 74 115 Melee 4 | . . 4 Ram 8 | . . 8 Kick 1 | . 1 . Crush . | . . . Escape Stasis . | . . . Rewire . | . . . Trap . | . . . Miscellaneous . | . . . Route ------- -11/Scrapyard -10/Materials (discovered 5 exits: *Mat x3 / [*Min] / [*Sub]) -9/Materials (discovered 1 exit: [*Min]) History --------- Turn | Location | Event 5 | -11/Scrapyard | Discovered new exit (range 16) 116 | -11/Scrapyard | Entered Materials 317 | -10/Materials | Build established: Mutant 373 | -10/Materials | Discovered new exit (range 8) 626 | -10/Materials | Discovered new exit (range 10) 716 | -10/Materials | Core integrity fell below 50% 1016 | -10/Materials | Discovered new exit (range 4) 1058 | -10/Materials | Repaired Aluminum Leg 1184 | -10/Materials | Discovered new exit (range 9) 1598 | -10/Materials | Central database locked down 1615 | -10/Materials | Discovered new exit (range 4) 1640 | -10/Materials | Entered another Materials area 1640 | -9/Materials | Evolved 2 slots: Utility x2 2228 | -9/Materials | Build established: Scavenger-Mutant 2364 | -9/Materials | Discovered new exit (range 18) 2561 | -9/Materials | Core integrity fell below 50% 2630 | -9/Materials | Core integrity fell below 20% 2663 | -9/Materials | Lost 5 parts (1p2n2w) 2673 | -9/Materials | Destroyed by Y-45 Defender with Heavy Assault Rifle Last Messages --------------- 02640_ Y-45 Defender heat short circuits Beam Rifle. 02640_ M-13 Machinist repairs Y-45 Defender. 02641_ Y-45 Defender heat spikes uncontrollably. 02641_ Acquired Lgt. EM Pulse Cannon. 02642_ Y-45 Defender heat damages Heat Sink. 02642_ M-13 Machinist repairs Heat Sink. 02644_ Y-45 Defender heat damages Imp. Ion Engine. 02645_ Y-45 Defender heat short circuits Imp. Ion Engine. 02646_ Dropped Broken Sml. Laser. 02647_ Y-45 Defender heat damages core (-4). 02647_ Acquired 5 matter. 02649_ M-13 Machinist repairs Y-45 Defender. 02649_ Acquired 5 matter. 02651_ M-13 Machinist repairs Broken Imp. Ion Engine. 02653_ M-13 Machinist repairs Lgt. Armor Plating. 02657_ Acquired 10 matter. 02660_ M-13 Machinist repairs Lgt. Armor Plating. 02666_ SBIS2K|RWYFD6#7=AK